{"text_format":"1","workbook":"xlsx","n_sheets":2,"sheets":["стр2 (3)","стр2 (4)"],"not_rendered":{"charts":0,"images":0,"macros":0,"external_links":0,"defined_names":2,"comments":0,"pivot_tables":0},"unopened":[],"bounds":{"document_bytes":16777216,"sheet_cells":100000,"rows_first":2000,"rows_last":500,"rows_between":2000,"halvings":0,"cell_chars":16384,"cell_head_chars":4096},"cells_cut":0,"cells_raw":0,"read":"whole","date_system":"1900"}

{"sheet":"стр2 (3)","index":0,"n_rows":62,"n_cols":142,"rows_kept":62,"cut":false,"hidden":false,"merged":[[61,83,61,100],[61,103,61,132],[59,3,59,11],[59,12,59,31],[59,32,59,43],[59,44,59,55],[59,56,59,65],[60,44,60,55],[58,73,58,118],[55,56,55,65],[60,56,60,65],[58,3,58,11],[58,12,58,31],[58,32,58,43],[58,44,58,55],[58,56,58,65],[60,83,60,100],[60,103,60,132],[53,3,53,11],[53,12,53,31],[53,32,53,43],[53,44,53,55],[53,56,53,65],[53,83,53,99],[53,102,53,133],[55,84,55,118],[56,3,57,11],[56,12,57,31],[56,32,57,43],[56,44,57,55],[56,56,57,65],[56,84,56,118],[57,73,57,118],[54,3,54,11],[54,12,54,31],[54,32,54,43],[54,44,54,55],[54,56,54,65],[55,3,55,11],[55,12,55,31],[55,32,55,43],[55,44,55,55],[47,111,48,122],[51,3,51,11],[51,12,51,31],[51,32,51,43],[51,44,51,55],[51,56,51,65],[52,3,52,11],[52,12,52,31],[52,32,52,43],[52,44,52,55],[52,56,52,65],[52,83,52,99],[52,102,52,133],[50,12,50,31],[50,32,50,43],[50,44,50,55],[50,56,50,65],[49,3,49,11],[49,12,49,31],[49,32,49,43],[49,44,49,55],[47,32,47,43],[47,44,47,55],[47,56,47,65],[45,111,46,122],[45,123,46,134],[49,56,49,65],[49,111,50,122],[47,123,48,134],[45,3,45,11],[45,12,45,31],[45,32,45,43],[45,44,45,55],[45,56,45,65],[46,3,46,11],[46,12,46,31],[46,32,46,43],[46,44,46,55],[46,56,46,65],[48,3,48,11],[48,12,48,31],[48,32,48,43],[48,44,48,55],[48,56,48,65],[47,3,47,11],[47,12,47,31],[49,123,50,134],[50,3,50,11],[43,123,43,134],[44,3,44,11],[44,12,44,31],[44,32,44,43],[44,44,44,55],[44,56,44,65],[44,80,44,99],[44,100,44,110],[44,111,44,122],[44,123,44,134],[44,72,44,79],[43,3,43,11],[43,12,43,31],[43,32,43,43],[43,44,43,55],[43,56,43,65],[43,72,43,79],[43,80,43,99],[43,100,43,110],[43,111,43,122],[41,100,41,110],[41,111,41,122],[41,123,41,134],[42,3,42,11],[42,12,42,31],[42,32,42,43],[42,44,42,55],[42,56,42,65],[42,72,42,79],[42,80,42,99],[42,100,42,110],[42,111,42,122],[42,123,42,134],[41,3,41,11],[41,12,41,31],[41,32,41,43],[41,44,41,55],[41,56,41,65],[41,72,41,79],[41,80,41,99],[39,111,39,122],[39,123,39,134],[40,3,40,11],[40,12,40,31],[40,32,40,43],[40,44,40,55],[40,56,40,65],[40,72,40,79],[40,80,40,99],[40,100,40,110],[40,111,40,122],[40,123,40,134],[39,44,39,55],[39,56,39,65],[39,72,39,79],[39,80,39,99],[39,100,39,110],[37,111,37,122],[37,123,37,134],[38,3,38,11],[38,12,38,31],[38,32,38,43],[38,44,38,55],[38,56,38,65],[38,72,38,79],[38,80,38,99],[38,100,38,110],[38,111,38,122],[38,123,38,134],[37,3,37,11],[37,12,37,21],[37,22,37,43],[37,44,37,55],[37,56,37,65],[37,66,59,68],[37,72,37,79],[37,80,37,99],[37,100,37,110],[39,3,39,11],[39,12,39,31],[39,32,39,43],[35,123,35,134],[36,3,36,11],[36,12,36,31],[36,32,36,43],[36,44,36,55],[36,56,36,65],[36,72,36,79],[36,80,36,99],[36,100,36,110],[36,111,36,122],[36,123,36,134],[35,3,35,11],[35,12,35,31],[35,32,35,43],[35,44,35,55],[35,56,35,65],[35,72,35,79],[35,80,35,99],[35,100,35,110],[35,111,35,122],[30,83,30,100],[30,103,30,132],[32,14,32,16],[32,19,32,34],[32,36,32,41],[32,55,32,65],[34,3,34,11],[34,12,34,31],[34,32,34,43],[34,44,34,55],[34,56,34,65],[34,72,34,79],[34,80,34,99],[34,100,34,110],[34,111,34,122],[34,123,34,134],[28,3,28,11],[28,12,28,31],[28,32,28,43],[28,44,28,55],[28,56,28,65],[29,44,29,55],[29,56,29,65],[29,83,29,100],[29,103,29,132],[25,3,26,11],[25,12,26,31],[25,32,26,43],[25,44,26,55],[25,56,26,65],[25,84,25,118],[26,73,26,118],[27,3,27,11],[27,12,27,31],[27,32,27,43],[27,44,27,55],[27,56,27,65],[27,73,27,118],[23,3,23,11],[23,12,23,31],[23,32,23,43],[23,44,23,55],[23,56,23,65],[24,3,24,11],[24,12,24,31],[24,32,24,43],[24,44,24,55],[24,56,24,65],[21,3,21,11],[21,12,21,31],[21,32,21,43],[21,44,21,55],[21,56,21,65],[21,83,21,99],[21,102,21,133],[22,3,22,11],[22,12,22,31],[22,32,22,43],[22,44,22,55],[22,56,22,65],[22,83,22,99],[22,102,22,133],[19,3,19,11],[19,12,19,31],[19,32,19,43],[19,44,19,55],[19,56,19,65],[20,3,20,11],[20,12,20,31],[20,32,20,43],[20,44,20,55],[20,56,20,65],[17,3,17,11],[17,12,17,31],[17,32,17,43],[17,44,17,55],[17,56,17,65],[18,3,18,11],[18,12,18,31],[18,32,18,43],[18,44,18,55],[18,56,18,65],[16,12,16,31],[16,32,16,43],[16,44,16,55],[16,56,16,65],[16,111,17,122],[16,123,17,134],[6,66,27,68],[6,72,6,79],[6,80,6,99],[6,100,6,110],[18,111,19,122],[18,123,19,134],[24,84,24,118],[12,56,12,65],[12,72,12,79],[12,80,12,99],[12,100,12,110],[12,111,12,122],[12,123,12,134],[13,123,13,134],[10,72,10,79],[10,80,10,99],[10,100,10,110],[10,111,10,122],[14,3,14,11],[14,12,14,31],[14,32,14,43],[14,44,14,55],[14,56,14,65],[14,111,15,122],[14,123,15,134],[15,3,15,11],[15,12,15,31],[13,3,13,11],[13,12,13,31],[13,32,13,43],[13,44,13,55],[13,56,13,65],[13,72,13,79],[13,80,13,99],[13,100,13,110],[13,111,13,122],[10,123,10,134],[11,3,11,11],[11,12,11,31],[11,32,11,43],[11,44,11,55],[11,56,11,65],[11,72,11,79],[11,80,11,99],[11,100,11,110],[11,111,11,122],[11,123,11,134],[8,72,8,79],[8,80,8,99],[8,100,8,110],[8,111,8,122],[8,123,8,134],[9,3,9,11],[9,12,9,31],[9,32,9,43],[9,44,9,55],[9,56,9,65],[9,72,9,79],[9,80,9,99],[9,100,9,110],[9,111,9,122],[9,123,9,134],[7,0,27,2],[7,3,7,11],[7,12,7,31],[7,32,7,43],[7,44,7,55],[7,56,7,65],[15,32,15,43],[15,44,15,55],[15,56,15,65],[16,3,16,11],[8,3,8,11],[8,12,8,31],[8,32,8,43],[8,44,8,55],[8,56,8,65],[10,3,10,11],[10,12,10,31],[10,32,10,43],[10,44,10,55],[10,56,10,65],[12,3,12,11],[12,12,12,31],[12,32,12,43],[12,44,12,55],[5,123,5,134],[6,3,6,11],[6,12,6,22],[6,23,6,43],[6,44,6,55],[6,56,6,65],[6,111,6,122],[6,123,6,134],[7,72,7,79],[7,80,7,99],[7,100,7,110],[7,111,7,122],[7,123,7,134],[5,3,5,11],[5,12,5,31],[5,32,5,43],[5,44,5,55],[5,56,5,65],[5,72,5,79],[5,80,5,99],[5,100,5,110],[5,111,5,122],[3,72,3,79],[3,80,3,99],[3,100,3,110],[3,111,3,122],[3,123,3,134],[4,3,4,11],[4,12,4,31],[4,32,4,43],[4,44,4,55],[4,56,4,65],[4,72,4,79],[4,80,4,99],[4,100,4,110],[4,111,4,122],[4,123,4,134],[1,14,1,16],[1,19,1,34],[1,36,1,41],[1,55,1,62],[3,3,3,11],[3,12,3,31],[3,32,3,43],[3,44,3,55],[3,56,3,65]]}
[]
[null,null,null,null,"Касса за ",null,null,null,null,null,null,null,null,"\"","16",null,null,"\"",null,"января",null,null,null,null,null,null,null,null,null,null,null,null,null,null,null,null,"2014",null,null,null,null,null,"г.",null,null,null,null,null,null,"Лист",null,null,null,null,null,5]
[]
[null,null,null,"Номер докумен- та",null,null,null,null,null,null,null,null,"От кого получено\nили кому выдано",null,null,null,null,null,null,null,null,null,null,null,null,null,null,null,null,null,null,null,"Номер кор- респонди- рующего счета, субсчета",null,null,null,null,null,null,null,null,null,null,null,"Приход,\nруб. коп.",null,null,null,null,null,null,null,null,null,null,null,"Расход, руб. коп.",null,null,null,null,null,null,null,null,null,null,null,null,null,null,null,"Номер доку- мента",null,null,null,null,null,null,null,"От кого получено\nили кому выдано",null,null,null,null,null,null,null,null,null,null,null,null,null,null,null,null,null,null,null,"Номер кор- респонди- рующего счета, субсчета",null,null,null,null,null,null,null,null,null,null,"Приход,\nруб. коп.",null,null,null,null,null,null,null,null,null,null,null,"Расход,\nруб. коп.",null,null,null,null,null,null,null,null,null,null,null,null,null,null,null,null,null,"Здравствуйте. У меня такая проблема. Настраиваю кассовую книгу на авто заполнение, практически всё сделал осталась малость: необходимо данные из ячейки DH48 на стр2(3) перенести в ячейку AS38 на стр2(4), а ячейке BD2 на стр2(4) установить значение(+1) от значения ячейки BD33 на стр2(3). Страница 2(4) не последняя и по мере необходимости страницы будут добавляться и формула или макрос (не знаю что именно сюда подходит) должна работать на всех страницах, как существующих так и вновь созданных. Заранее благодарю."]
[null,null,null,1,null,null,null,null,null,null,null,null,2,null,null,null,null,null,null,null,null,null,null,null,null,null,null,null,null,null,null,null,3,null,null,null,null,null,null,null,null,null,null,null,4,null,null,null,null,null,null,null,null,null,null,null,5,null,null,null,null,null,null,null,null,null,null,null,null,null,null,null,1,null,null,null,null,null,null,null,2,null,null,null,null,null,null,null,null,null,null,null,null,null,null,null,null,null,null,null,3,null,null,null,null,null,null,null,null,null,null,4,null,null,null,null,null,null,null,null,null,null,null,5]
[]
[null,null,null,null,null,null,null,null,null,null,null,null,null,null,null,null,null,null,null,null,null,null,null,"Остаток на начало дня",null,null,null,null,null,null,null,null,null,null,null,null,null,null,null,null,null,null,null,null,21200,null,null,null,null,null,null,null,null,null,null,null,"Х",null,null,null,null,null,null,null,null,null,"Л       и         н        и        я                   о        т        р        е        з       а"]
["    П   О   Л   Е         Д   Л   Я         П   О   Д   Ш   И   В   К   И",null,null,"12",null,null,null,null,null,null,null,null,"Андрианова",null,null,null,null,null,null,null,null,null,null,null,null,null,null,null,null,null,null,null,"абонемент",null,null,null,null,null,null,null,null,null,null,null,1200]
[null,null,null,"1",null,null,null,null,null,null,null,null,"Сорокиной",null,null,null,null,null,null,null,null,null,null,null,null,null,null,null,null,null,null,null,null,null,null,null,null,null,null,null,null,null,null,null,null,null,null,null,null,null,null,null,null,null,null,null,12000]
[]
[]
[]
[]
[]
[null,null,null,null,null,null,null,null,null,null,null,null,null,null,null,null,null,null,null,null,null,null,null,null,null,null,null,null,null,null,null,null,null,null,null,null,null,null,null,null,null,null,null,null,null,null,null,null,null,null,null,null,null,null,null,null,null,null,null,null,null,null,null,null,null,null,null,null,null,null,null,null,null,null,null,null,null,null,null,null,null,null,null,null,null,null,null,null,null,null,null,null,null,null,null,null,null,null,null,null,null,null,null,null,null,null,null,null,null,null,null,{"$f":"AS30+SUM(DH6:DS14)","v":1200},null,null,null,null,null,null,null,null,null,null,null,{"$f":"BE30+SUM(DT6:EE14)","v":12000}]
[null,null,null,null,null,null,null,null,null,null,null,null,null,null,null,null,null,null,null,null,null,null,null,null,null,null,null,null,null,null,null,null,null,null,null,null,null,null,null,null,null,null,null,null,null,null,null,null,null,null,null,null,null,null,null,null,null,null,null,null,null,null,null,null,null,null,null,null,null,null,null,null,null,null,null,null,null,null,null,null,null,null,null,null,null,null,null,null,null,null,null,null,null,null,null,null,null,null,null,null,null,null,null,null,null,null,null,null,null,null,"Итого за день"]
[null,null,null,null,null,null,null,null,null,null,null,null,null,null,null,null,null,null,null,null,null,null,null,null,null,null,null,null,null,null,null,null,null,null,null,null,null,null,null,null,null,null,null,null,null,null,null,null,null,null,null,null,null,null,null,null,null,null,null,null,null,null,null,null,null,null,null,null,null,null,null,null,null,null,null,null,null,null,null,null,null,null,null,null,null,null,null,null,null,null,null,null,null,null,null,null,null,null,null,null,null,null,null,null,null,null,null,null,null,null,null,{"$f":"AS7+DH15-DT15","v":10400},null,null,null,null,null,null,null,null,null,null,null,"Х"]
[null,null,null,null,null,null,null,null,null,null,null,null,null,null,null,null,null,null,null,null,null,null,null,null,null,null,null,null,null,null,null,null,null,null,null,null,null,null,null,null,null,null,null,null,null,null,null,null,null,null,null,null,null,null,null,null,null,null,null,null,null,null,null,null,null,null,null,null,null,null,null,null,null,null,null,null,null,null,null,null,null,null,null,null,null,null,null,null,null,null,null,null,null,null,null,null,null,null,null,null,null,null,null,null,null,null,null,null,null,null,"Остаток на конец дня"]
[null,null,null,null,null,null,null,null,null,null,null,null,null,null,null,null,null,null,null,null,null,null,null,null,null,null,null,null,null,null,null,null,null,null,null,null,null,null,null,null,null,null,null,null,null,null,null,null,null,null,null,null,null,null,null,null,null,null,null,null,null,null,null,null,null,null,null,null,null,null,null,null,"в том числе на заработную плату, выплаты",null,null,null,null,null,null,null,null,null,null,null,null,null,null,null,null,null,null,null,null,null,null,null,null,null,null,null,null,null,null,null,null,null,null,null,null,null,null,null,null,null,null,null,null,null,null,null,null,null,null,"Х"]
[null,null,null,null,null,null,null,null,null,null,null,null,null,null,null,null,null,null,null,null,null,null,null,null,null,null,null,null,null,null,null,null,null,null,null,null,null,null,null,null,null,null,null,null,null,null,null,null,null,null,null,null,null,null,null,null,null,null,null,null,null,null,null,null,null,null,null,null,null,null,null,null,"социального характера и стипендии"]
[]
[null,null,null,null,null,null,null,null,null,null,null,null,null,null,null,null,null,null,null,null,null,null,null,null,null,null,null,null,null,null,null,null,null,null,null,null,null,null,null,null,null,null,null,null,null,null,null,null,null,null,null,null,null,null,null,null,null,null,null,null,null,null,null,null,null,null,null,null,null,null,null,null,null,null,"Кассир",null,null,null,null,null,null,null,null,null,null,null,null,null,null,null,null,null,null,null,null,null,null,null,null,null,null,null,"Сорокина Е.В"]
[null,null,null,null,null,null,null,null,null,null,null,null,null,null,null,null,null,null,null,null,null,null,null,null,null,null,null,null,null,null,null,null,null,null,null,null,null,null,null,null,null,null,null,null,null,null,null,null,null,null,null,null,null,null,null,null,null,null,null,null,null,null,null,null,null,null,null,null,null,null,null,null,null,null,null,null,null,null,null,null,null,null,null,"(подпись)",null,null,null,null,null,null,null,null,null,null,null,null,null,null,null,null,null,null,"(расшифровка подписи)"]
[null,null,null,null,null,null,null,null,null,null,null,null,null,null,null,null,null,null,null,null,null,null,null,null,null,null,null,null,null,null,null,null,null,null,null,null,null,null,null,null,null,null,null,null,null,null,null,null,null,null,null,null,null,null,null,null,null,null,null,null,null,null,null,null,null,null,null,null,null,null,null,null,"Записи    в  кассовой   книге  проверил    и  документы    в "]
[null,null,null,null,null,null,null,null,null,null,null,null,null,null,null,null,null,null,null,null,null,null,null,null,null,null,null,null,null,null,null,null,null,null,null,null,null,null,null,null,null,null,null,null,null,null,null,null,null,null,null,null,null,null,null,null,null,null,null,null,null,null,null,null,null,null,null,null,null,null,null,null,"количестве",null,null,null,null,null,null,null,null,null,null,null,null,null,null,null,null,null,null,null,null,null,null,null,null,null,null,null,null,null,null,null,null,null,null,null,null,null,null,null,null,null,null,null,null,null,null,null,"приходных и"]
[null,null,null,null,null,null,null,null,null,null,null,null,null,null,null,null,null,null,null,null,null,null,null,null,null,null,null,null,null,null,null,null,null,null,null,null,null,null,null,null,null,null,null,null,null,null,null,null,null,null,null,null,null,null,null,null,null,null,null,null,null,null,null,null,null,null,null,null,null,null,null,null,null,null,null,null,null,null,null,null,null,null,null,null,"(прописью)"]
[null,null,null,null,null,null,null,null,null,null,null,null,null,null,null,null,null,null,null,null,null,null,null,null,null,null,null,null,null,null,null,null,null,null,null,null,null,null,null,null,null,null,null,null,null,null,null,null,null,null,null,null,null,null,null,null,null,null,null,null,null,null,null,null,null,null,null,null,null,null,null,null,null,null,null,null,null,null,null,null,null,null,null,null,null,null,null,null,null,null,null,null,null,null,null,null,null,null,null,null,null,null,null,null,null,null,null,null,null,null,null,null,null,null,null,null,null,null,null,null,"расходных"]
[null,null,null,null,null,null,null,null,null,null,null,null,null,null,null,null,null,null,null,null,null,null,null,null,null,null,null,null,null,null,null,null,null,null,null,null,null,null,null,null,null,null,null,null,null,null,null,null,null,null,null,null,null,null,null,null,null,null,null,null,null,null,null,null,null,null,null,null,null,null,null,null,null,"(прописью)"]
[null,null,null,null,null,null,null,null,null,null,null,null,null,null,null,null,null,null,null,null,null,null,null,null,null,null,null,null,null,null,null,null,null,null,null,null,null,null,null,null,null,null,null,null,null,null,null,null,null,null,null,null,null,null,null,null,null,null,null,null,null,null,null,null,null,null,null,null,null,null,null,null,"получил."]
[null,null,null,null,null,null,null,null,null,null,null,null,null,null,null,null,null,null,null,null,null,null,null,null,null,null,null,null,null,null,null,null,null,null,null,null,null,null,null,null,null,null,null,"Перенос",{"$f":"SUM(AS8:BD29)","v":1200},null,null,null,null,null,null,null,null,null,null,null,{"$f":"SUM(BE8:BN29)","v":12000},null,null,null,null,null,null,null,null,null,null,null,null,null,null,null,"Бухгалтер",null,null,null,null,null,null,null,null,null,null,null,null,null,null,null,null,null,null,null,null,null,null,null,null,null,null,null,null,null,null,"Сорокина Е.В"]
[null,null,null,null,null,null,null,null,null,null,null,null,null,null,null,null,null,null,null,null,null,null,null,null,null,null,null,null,null,null,null,null,null,null,null,null,null,null,null,null,null,null,null,null,null,null,null,null,null,null,null,null,null,null,null,null,null,null,null,null,null,null,null,null,null,null,null,null,null,null,null,null,null,null,null,null,null,null,null,null,null,null,null,"(подпись)",null,null,null,null,null,null,null,null,null,null,null,null,null,null,null,null,null,null,null,"(расшифровка подписи)"]
[]
[null,null,null,null,"Касса за ",null,null,null,null,null,null,null,null,"\"",null,null,null,"\"",null,null,null,null,null,null,null,null,null,null,null,null,null,null,null,null,null,null,"2014",null,null,null,null,null,"г.",null,null,null,null,null,null,"Лист",null,null,null,null,null,{"$f":"BD2+1","v":6}]
[]
[null,null,null,"Номер докумен- та",null,null,null,null,null,null,null,null,"От кого получено\nили кому выдано",null,null,null,null,null,null,null,null,null,null,null,null,null,null,null,null,null,null,null,"Номер кор- респонди- рующего счета, субсчета",null,null,null,null,null,null,null,null,null,null,null,"Приход,\nруб. коп.",null,null,null,null,null,null,null,null,null,null,null,"Расход, руб. коп.",null,null,null,null,null,null,null,null,null,null,null,null,null,null,null,"Номер доку- мента",null,null,null,null,null,null,null,"От кого получено\nили кому выдано",null,null,null,null,null,null,null,null,null,null,null,null,null,null,null,null,null,null,null,"Номер кор- респонди- рующего счета, субсчета",null,null,null,null,null,null,null,null,null,null,"Приход,\nруб. коп.",null,null,null,null,null,null,null,null,null,null,null,"Расход,\nруб. коп."]
[null,null,null,1,null,null,null,null,null,null,null,null,2,null,null,null,null,null,null,null,null,null,null,null,null,null,null,null,null,null,null,null,3,null,null,null,null,null,null,null,null,null,null,null,4,null,null,null,null,null,null,null,null,null,null,null,5,null,null,null,null,null,null,null,null,null,null,null,null,null,null,null,1,null,null,null,null,null,null,null,2,null,null,null,null,null,null,null,null,null,null,null,null,null,null,null,null,null,null,null,3,null,null,null,null,null,null,null,null,null,null,4,null,null,null,null,null,null,null,null,null,null,null,5]
[]
[null,null,null,null,null,null,null,null,null,null,null,null,null,null,null,null,null,null,null,null,null,null,"Остаток на начало дня",null,null,null,null,null,null,null,null,null,null,null,null,null,null,null,null,null,null,null,null,null,{"$f":"DH17","v":10400},null,null,null,null,null,null,null,null,null,null,null,"Х",null,null,null,null,null,null,null,null,null,"Л       и         н        и        я                   о        т        р        е        з       а"]
[]
[]
[]
[]
[]
[]
[]
[null,null,null,null,null,null,null,null,null,null,null,null,null,null,null,null,null,null,null,null,null,null,null,null,null,null,null,null,null,null,null,null,null,null,null,null,null,null,null,null,null,null,null,null,null,null,null,null,null,null,null,null,null,null,null,null,null,null,null,null,null,null,null,null,null,null,null,null,null,null,null,null,null,null,null,null,null,null,null,null,null,null,null,null,null,null,null,null,null,null,null,null,null,null,null,null,null,null,null,null,null,null,null,null,null,null,null,null,null,null,null,{"$f":"AS61+SUM(DH37:DS45)","v":0},null,null,null,null,null,null,null,null,null,null,null,{"$f":"BE61+SUM(DT37:EE45)","v":0}]
[null,null,null,null,null,null,null,null,null,null,null,null,null,null,null,null,null,null,null,null,null,null,null,null,null,null,null,null,null,null,null,null,null,null,null,null,null,null,null,null,null,null,null,null,null,null,null,null,null,null,null,null,null,null,null,null,null,null,null,null,null,null,null,null,null,null,null,null,null,null,null,null,null,null,null,null,null,null,null,null,null,null,null,null,null,null,null,null,null,null,null,null,null,null,null,null,null,null,null,null,null,null,null,null,null,null,null,null,null,null,"Итого за день"]
[null,null,null,null,null,null,null,null,null,null,null,null,null,null,null,null,null,null,null,null,null,null,null,null,null,null,null,null,null,null,null,null,null,null,null,null,null,null,null,null,null,null,null,null,null,null,null,null,null,null,null,null,null,null,null,null,null,null,null,null,null,null,null,null,null,null,null,null,null,null,null,null,null,null,null,null,null,null,null,null,null,null,null,null,null,null,null,null,null,null,null,null,null,null,null,null,null,null,null,null,null,null,null,null,null,null,null,null,null,null,null,{"$f":"AS7+DH15-DT15","v":10400},null,null,null,null,null,null,null,null,null,null,null,"Х"]
[null,null,null,null,null,null,null,null,null,null,null,null,null,null,null,null,null,null,null,null,null,null,null,null,null,null,null,null,null,null,null,null,null,null,null,null,null,null,null,null,null,null,null,null,null,null,null,null,null,null,null,null,null,null,null,null,null,null,null,null,null,null,null,null,null,null,null,null,null,null,null,null,null,null,null,null,null,null,null,null,null,null,null,null,null,null,null,null,null,null,null,null,null,null,null,null,null,null,null,null,null,null,null,null,null,null,null,null,null,null,"Остаток на конец дня"]
[null,null,null,null,null,null,null,null,null,null,null,null,null,null,null,null,null,null,null,null,null,null,null,null,null,null,null,null,null,null,null,null,null,null,null,null,null,null,null,null,null,null,null,null,null,null,null,null,null,null,null,null,null,null,null,null,null,null,null,null,null,null,null,null,null,null,null,null,null,null,null,null,"в том числе на заработную плату, выплаты",null,null,null,null,null,null,null,null,null,null,null,null,null,null,null,null,null,null,null,null,null,null,null,null,null,null,null,null,null,null,null,null,null,null,null,null,null,null,null,null,null,null,null,null,null,null,null,null,null,null,"Х"]
[null,null,null,null,null,null,null,null,null,null,null,null,null,null,null,null,null,null,null,null,null,null,null,null,null,null,null,null,null,null,null,null,null,null,null,null,null,null,null,null,null,null,null,null,null,null,null,null,null,null,null,null,null,null,null,null,null,null,null,null,null,null,null,null,null,null,null,null,null,null,null,null,"социального характера и стипендии"]
[]
[null,null,null,null,null,null,null,null,null,null,null,null,null,null,null,null,null,null,null,null,null,null,null,null,null,null,null,null,null,null,null,null,null,null,null,null,null,null,null,null,null,null,null,null,null,null,null,null,null,null,null,null,null,null,null,null,null,null,null,null,null,null,null,null,null,null,null,null,null,null,null,null,null,null,"Кассир",null,null,null,null,null,null,null,null,null,null,null,null,null,null,null,null,null,null,null,null,null,null,null,null,null,null,null,"Сорокина Е.В"]
[null,null,null,null,null,null,null,null,null,null,null,null,null,null,null,null,null,null,null,null,null,null,null,null,null,null,null,null,null,null,null,null,null,null,null,null,null,null,null,null,null,null,null,null,null,null,null,null,null,null,null,null,null,null,null,null,null,null,null,null,null,null,null,null,null,null,null,null,null,null,null,null,null,null,null,null,null,null,null,null,null,null,null,"(подпись)",null,null,null,null,null,null,null,null,null,null,null,null,null,null,null,null,null,null,"(расшифровка подписи)"]
[null,null,null,null,null,null,null,null,null,null,null,null,null,null,null,null,null,null,null,null,null,null,null,null,null,null,null,null,null,null,null,null,null,null,null,null,null,null,null,null,null,null,null,null,null,null,null,null,null,null,null,null,null,null,null,null,null,null,null,null,null,null,null,null,null,null,null,null,null,null,null,null,"Записи    в  кассовой   книге  проверил    и  документы    в "]
[null,null,null,null,null,null,null,null,null,null,null,null,null,null,null,null,null,null,null,null,null,null,null,null,null,null,null,null,null,null,null,null,null,null,null,null,null,null,null,null,null,null,null,null,null,null,null,null,null,null,null,null,null,null,null,null,null,null,null,null,null,null,null,null,null,null,null,null,null,null,null,null,"количестве",null,null,null,null,null,null,null,null,null,null,null,null,null,null,null,null,null,null,null,null,null,null,null,null,null,null,null,null,null,null,null,null,null,null,null,null,null,null,null,null,null,null,null,null,null,null,null,"приходных и"]
[null,null,null,null,null,null,null,null,null,null,null,null,null,null,null,null,null,null,null,null,null,null,null,null,null,null,null,null,null,null,null,null,null,null,null,null,null,null,null,null,null,null,null,null,null,null,null,null,null,null,null,null,null,null,null,null,null,null,null,null,null,null,null,null,null,null,null,null,null,null,null,null,null,null,null,null,null,null,null,null,null,null,null,null,"(прописью)"]
[null,null,null,null,null,null,null,null,null,null,null,null,null,null,null,null,null,null,null,null,null,null,null,null,null,null,null,null,null,null,null,null,null,null,null,null,null,null,null,null,null,null,null,null,null,null,null,null,null,null,null,null,null,null,null,null,null,null,null,null,null,null,null,null,null,null,null,null,null,null,null,null,null,null,null,null,null,null,null,null,null,null,null,null,null,null,null,null,null,null,null,null,null,null,null,null,null,null,null,null,null,null,null,null,null,null,null,null,null,null,null,null,null,null,null,null,null,null,null,null,"расходных"]
[null,null,null,null,null,null,null,null,null,null,null,null,null,null,null,null,null,null,null,null,null,null,null,null,null,null,null,null,null,null,null,null,null,null,null,null,null,null,null,null,null,null,null,null,null,null,null,null,null,null,null,null,null,null,null,null,null,null,null,null,null,null,null,null,null,null,null,null,null,null,null,null,null,"(прописью)"]
[null,null,null,null,null,null,null,null,null,null,null,null,null,null,null,null,null,null,null,null,null,null,null,null,null,null,null,null,null,null,null,null,null,null,null,null,null,null,null,null,null,null,null,null,null,null,null,null,null,null,null,null,null,null,null,null,null,null,null,null,null,null,null,null,null,null,null,null,null,null,null,null,"получил."]
[null,null,null,null,null,null,null,null,null,null,null,null,null,null,null,null,null,null,null,null,null,null,null,null,null,null,null,null,null,null,null,null,null,null,null,null,null,null,null,null,null,null,null,"Перенос",{"$f":"SUM(AS39:BD60)","v":0},null,null,null,null,null,null,null,null,null,null,null,{"$f":"SUM(BE39:BN60)","v":0},null,null,null,null,null,null,null,null,null,null,null,null,null,null,null,"Бухгалтер",null,null,null,null,null,null,null,null,null,null,null,null,null,null,null,null,null,null,null,null,null,null,null,null,null,null,null,null,null,null,"Сорокина Е.В"]
[null,null,null,null,null,null,null,null,null,null,null,null,null,null,null,null,null,null,null,null,null,null,null,null,null,null,null,null,null,null,null,null,null,null,null,null,null,null,null,null,null,null,null,null,null,null,null,null,null,null,null,null,null,null,null,null,null,null,null,null,null,null,null,null,null,null,null,null,null,null,null,null,null,null,null,null,null,null,null,null,null,null,null,"(подпись)",null,null,null,null,null,null,null,null,null,null,null,null,null,null,null,null,null,null,null,"(расшифровка подписи)"]

{"sheet":"стр2 (4)","index":1,"n_rows":62,"n_cols":124,"rows_kept":62,"cut":false,"hidden":false,"merged":[[61,83,61,100],[61,103,61,132],[59,3,59,11],[59,12,59,31],[59,32,59,43],[59,44,59,55],[59,56,59,65],[60,44,60,55],[58,73,58,118],[55,56,55,65],[60,56,60,65],[58,3,58,11],[58,12,58,31],[58,32,58,43],[58,44,58,55],[58,56,58,65],[60,83,60,100],[60,103,60,132],[53,3,53,11],[53,12,53,31],[53,32,53,43],[53,44,53,55],[53,56,53,65],[53,83,53,99],[53,102,53,133],[55,84,55,118],[56,3,57,11],[56,12,57,31],[56,32,57,43],[56,44,57,55],[56,56,57,65],[56,84,56,118],[57,73,57,118],[54,3,54,11],[54,12,54,31],[54,32,54,43],[54,44,54,55],[54,56,54,65],[55,3,55,11],[55,12,55,31],[55,32,55,43],[55,44,55,55],[47,111,48,122],[51,3,51,11],[51,12,51,31],[51,32,51,43],[51,44,51,55],[51,56,51,65],[52,3,52,11],[52,12,52,31],[52,32,52,43],[52,44,52,55],[52,56,52,65],[52,83,52,99],[52,102,52,133],[50,12,50,31],[50,32,50,43],[50,44,50,55],[50,56,50,65],[49,3,49,11],[49,12,49,31],[49,32,49,43],[49,44,49,55],[47,32,47,43],[47,44,47,55],[47,56,47,65],[45,111,46,122],[45,123,46,134],[49,56,49,65],[49,111,50,122],[47,123,48,134],[45,3,45,11],[45,12,45,31],[45,32,45,43],[45,44,45,55],[45,56,45,65],[46,3,46,11],[46,12,46,31],[46,32,46,43],[46,44,46,55],[46,56,46,65],[48,3,48,11],[48,12,48,31],[48,32,48,43],[48,44,48,55],[48,56,48,65],[47,3,47,11],[47,12,47,31],[49,123,50,134],[50,3,50,11],[43,123,43,134],[44,3,44,11],[44,12,44,31],[44,32,44,43],[44,44,44,55],[44,56,44,65],[44,80,44,99],[44,100,44,110],[44,111,44,122],[44,123,44,134],[44,72,44,79],[43,3,43,11],[43,12,43,31],[43,32,43,43],[43,44,43,55],[43,56,43,65],[43,72,43,79],[43,80,43,99],[43,100,43,110],[43,111,43,122],[41,100,41,110],[41,111,41,122],[41,123,41,134],[42,3,42,11],[42,12,42,31],[42,32,42,43],[42,44,42,55],[42,56,42,65],[42,72,42,79],[42,80,42,99],[42,100,42,110],[42,111,42,122],[42,123,42,134],[41,3,41,11],[41,12,41,31],[41,32,41,43],[41,44,41,55],[41,56,41,65],[41,72,41,79],[41,80,41,99],[39,111,39,122],[39,123,39,134],[40,3,40,11],[40,12,40,31],[40,32,40,43],[40,44,40,55],[40,56,40,65],[40,72,40,79],[40,80,40,99],[40,100,40,110],[40,111,40,122],[40,123,40,134],[39,44,39,55],[39,56,39,65],[39,72,39,79],[39,80,39,99],[39,100,39,110],[37,111,37,122],[37,123,37,134],[38,3,38,11],[38,12,38,31],[38,32,38,43],[38,44,38,55],[38,56,38,65],[38,72,38,79],[38,80,38,99],[38,100,38,110],[38,111,38,122],[38,123,38,134],[37,3,37,11],[37,12,37,21],[37,22,37,43],[37,44,37,55],[37,56,37,65],[37,66,59,68],[37,72,37,79],[37,80,37,99],[37,100,37,110],[39,3,39,11],[39,12,39,31],[39,32,39,43],[35,123,35,134],[36,3,36,11],[36,12,36,31],[36,32,36,43],[36,44,36,55],[36,56,36,65],[36,72,36,79],[36,80,36,99],[36,100,36,110],[36,111,36,122],[36,123,36,134],[35,3,35,11],[35,12,35,31],[35,32,35,43],[35,44,35,55],[35,56,35,65],[35,72,35,79],[35,80,35,99],[35,100,35,110],[35,111,35,122],[30,83,30,100],[30,103,30,132],[32,14,32,16],[32,19,32,34],[32,36,32,41],[32,55,32,65],[34,3,34,11],[34,12,34,31],[34,32,34,43],[34,44,34,55],[34,56,34,65],[34,72,34,79],[34,80,34,99],[34,100,34,110],[34,111,34,122],[34,123,34,134],[28,3,28,11],[28,12,28,31],[28,32,28,43],[28,44,28,55],[28,56,28,65],[29,44,29,55],[29,56,29,65],[29,83,29,100],[29,103,29,132],[25,3,26,11],[25,12,26,31],[25,32,26,43],[25,44,26,55],[25,56,26,65],[25,84,25,118],[26,73,26,118],[27,3,27,11],[27,12,27,31],[27,32,27,43],[27,44,27,55],[27,56,27,65],[27,73,27,118],[23,3,23,11],[23,12,23,31],[23,32,23,43],[23,44,23,55],[23,56,23,65],[24,3,24,11],[24,12,24,31],[24,32,24,43],[24,44,24,55],[24,56,24,65],[21,3,21,11],[21,12,21,31],[21,32,21,43],[21,44,21,55],[21,56,21,65],[21,83,21,99],[21,102,21,133],[22,3,22,11],[22,12,22,31],[22,32,22,43],[22,44,22,55],[22,56,22,65],[22,83,22,99],[22,102,22,133],[19,3,19,11],[19,12,19,31],[19,32,19,43],[19,44,19,55],[19,56,19,65],[20,3,20,11],[20,12,20,31],[20,32,20,43],[20,44,20,55],[20,56,20,65],[17,3,17,11],[17,12,17,31],[17,32,17,43],[17,44,17,55],[17,56,17,65],[18,3,18,11],[18,12,18,31],[18,32,18,43],[18,44,18,55],[18,56,18,65],[16,12,16,31],[16,32,16,43],[16,44,16,55],[16,56,16,65],[16,111,17,122],[16,123,17,134],[6,66,27,68],[6,72,6,79],[6,80,6,99],[6,100,6,110],[18,111,19,122],[18,123,19,134],[24,84,24,118],[12,56,12,65],[12,72,12,79],[12,80,12,99],[12,100,12,110],[12,111,12,122],[12,123,12,134],[13,123,13,134],[10,72,10,79],[10,80,10,99],[10,100,10,110],[10,111,10,122],[14,3,14,11],[14,12,14,31],[14,32,14,43],[14,44,14,55],[14,56,14,65],[14,111,15,122],[14,123,15,134],[15,3,15,11],[15,12,15,31],[13,3,13,11],[13,12,13,31],[13,32,13,43],[13,44,13,55],[13,56,13,65],[13,72,13,79],[13,80,13,99],[13,100,13,110],[13,111,13,122],[10,123,10,134],[11,3,11,11],[11,12,11,31],[11,32,11,43],[11,44,11,55],[11,56,11,65],[11,72,11,79],[11,80,11,99],[11,100,11,110],[11,111,11,122],[11,123,11,134],[8,72,8,79],[8,80,8,99],[8,100,8,110],[8,111,8,122],[8,123,8,134],[9,3,9,11],[9,12,9,31],[9,32,9,43],[9,44,9,55],[9,56,9,65],[9,72,9,79],[9,80,9,99],[9,100,9,110],[9,111,9,122],[9,123,9,134],[7,0,27,2],[7,3,7,11],[7,12,7,31],[7,32,7,43],[7,44,7,55],[7,56,7,65],[15,32,15,43],[15,44,15,55],[15,56,15,65],[16,3,16,11],[8,3,8,11],[8,12,8,31],[8,32,8,43],[8,44,8,55],[8,56,8,65],[10,3,10,11],[10,12,10,31],[10,32,10,43],[10,44,10,55],[10,56,10,65],[12,3,12,11],[12,12,12,31],[12,32,12,43],[12,44,12,55],[5,123,5,134],[6,3,6,11],[6,12,6,22],[6,23,6,43],[6,44,6,55],[6,56,6,65],[6,111,6,122],[6,123,6,134],[7,72,7,79],[7,80,7,99],[7,100,7,110],[7,111,7,122],[7,123,7,134],[5,3,5,11],[5,12,5,31],[5,32,5,43],[5,44,5,55],[5,56,5,65],[5,72,5,79],[5,80,5,99],[5,100,5,110],[5,111,5,122],[3,72,3,79],[3,80,3,99],[3,100,3,110],[3,111,3,122],[3,123,3,134],[4,3,4,11],[4,12,4,31],[4,32,4,43],[4,44,4,55],[4,56,4,65],[4,72,4,79],[4,80,4,99],[4,100,4,110],[4,111,4,122],[4,123,4,134],[1,14,1,16],[1,19,1,34],[1,36,1,41],[1,55,1,62],[3,3,3,11],[3,12,3,31],[3,32,3,43],[3,44,3,55],[3,56,3,65]]}
[]
[null,null,null,null,"Касса за ",null,null,null,null,null,null,null,null,"\"",null,null,null,"\"",null,null,null,null,null,null,null,null,null,null,null,null,null,null,null,null,null,null,"2014",null,null,null,null,null,"г.",null,null,null,null,null,null,"Лист",null,null,null,null,null,{"$f":"INDIRECT(\"'стр2 (\"&SUBSTITUTE(MID(CELL(\"имяфайла\",EE33),SEARCH(\"(\",CELL(\"имяфайла\",EE33),1)+1,5),\")\",\"\")-1&\")'!BD33\")+1","v":7}]
[]
[null,null,null,"Номер докумен- та",null,null,null,null,null,null,null,null,"От кого получено\nили кому выдано",null,null,null,null,null,null,null,null,null,null,null,null,null,null,null,null,null,null,null,"Номер кор- респонди- рующего счета, субсчета",null,null,null,null,null,null,null,null,null,null,null,"Приход,\nруб. коп.",null,null,null,null,null,null,null,null,null,null,null,"Расход, руб. коп.",null,null,null,null,null,null,null,null,null,null,null,null,null,null,null,"Номер доку- мента",null,null,null,null,null,null,null,"От кого получено\nили кому выдано",null,null,null,null,null,null,null,null,null,null,null,null,null,null,null,null,null,null,null,"Номер кор- респонди- рующего счета, субсчета",null,null,null,null,null,null,null,null,null,null,"Приход,\nруб. коп.",null,null,null,null,null,null,null,null,null,null,null,"Расход,\nруб. коп."]
[null,null,null,1,null,null,null,null,null,null,null,null,2,null,null,null,null,null,null,null,null,null,null,null,null,null,null,null,null,null,null,null,3,null,null,null,null,null,null,null,null,null,null,null,4,null,null,null,null,null,null,null,null,null,null,null,5,null,null,null,null,null,null,null,null,null,null,null,null,null,null,null,1,null,null,null,null,null,null,null,2,null,null,null,null,null,null,null,null,null,null,null,null,null,null,null,null,null,null,null,3,null,null,null,null,null,null,null,null,null,null,4,null,null,null,null,null,null,null,null,null,null,null,5]
[]
[null,null,null,null,null,null,null,null,null,null,null,null,null,null,null,null,null,null,null,null,null,null,null,"Остаток на начало дня",null,null,null,null,null,null,null,null,null,null,null,null,null,null,null,null,null,null,null,null,null,null,null,null,null,null,null,null,null,null,null,null,"Х",null,null,null,null,null,null,null,null,null,"Л       и         н        и        я                   о        т        р        е        з       а"]
["    П   О   Л   Е         Д   Л   Я         П   О   Д   Ш   И   В   К   И"]
[]
[]
[]
[]
[]
[]
[null,null,null,null,null,null,null,null,null,null,null,null,null,null,null,null,null,null,null,null,null,null,null,null,null,null,null,null,null,null,null,null,null,null,null,null,null,null,null,null,null,null,null,null,null,null,null,null,null,null,null,null,null,null,null,null,null,null,null,null,null,null,null,null,null,null,null,null,null,null,null,null,null,null,null,null,null,null,null,null,null,null,null,null,null,null,null,null,null,null,null,null,null,null,null,null,null,null,null,null,null,null,null,null,null,null,null,null,null,null,null,{"$f":"AS30+SUM(DH6:DS14)","v":0},null,null,null,null,null,null,null,null,null,null,null,{"$f":"BE30+SUM(DT6:EE14)","v":0}]
[null,null,null,null,null,null,null,null,null,null,null,null,null,null,null,null,null,null,null,null,null,null,null,null,null,null,null,null,null,null,null,null,null,null,null,null,null,null,null,null,null,null,null,null,null,null,null,null,null,null,null,null,null,null,null,null,null,null,null,null,null,null,null,null,null,null,null,null,null,null,null,null,null,null,null,null,null,null,null,null,null,null,null,null,null,null,null,null,null,null,null,null,null,null,null,null,null,null,null,null,null,null,null,null,null,null,null,null,null,null,"Итого за день"]
[null,null,null,null,null,null,null,null,null,null,null,null,null,null,null,null,null,null,null,null,null,null,null,null,null,null,null,null,null,null,null,null,null,null,null,null,null,null,null,null,null,null,null,null,null,null,null,null,null,null,null,null,null,null,null,null,null,null,null,null,null,null,null,null,null,null,null,null,null,null,null,null,null,null,null,null,null,null,null,null,null,null,null,null,null,null,null,null,null,null,null,null,null,null,null,null,null,null,null,null,null,null,null,null,null,null,null,null,null,null,null,{"$f":"AS7+DH15-DT15","v":0},null,null,null,null,null,null,null,null,null,null,null,"Х"]
[null,null,null,null,null,null,null,null,null,null,null,null,null,null,null,null,null,null,null,null,null,null,null,null,null,null,null,null,null,null,null,null,null,null,null,null,null,null,null,null,null,null,null,null,null,null,null,null,null,null,null,null,null,null,null,null,null,null,null,null,null,null,null,null,null,null,null,null,null,null,null,null,null,null,null,null,null,null,null,null,null,null,null,null,null,null,null,null,null,null,null,null,null,null,null,null,null,null,null,null,null,null,null,null,null,null,null,null,null,null,"Остаток на конец дня"]
[null,null,null,null,null,null,null,null,null,null,null,null,null,null,null,null,null,null,null,null,null,null,null,null,null,null,null,null,null,null,null,null,null,null,null,null,null,null,null,null,null,null,null,null,null,null,null,null,null,null,null,null,null,null,null,null,null,null,null,null,null,null,null,null,null,null,null,null,null,null,null,null,"в том числе на заработную плату, выплаты",null,null,null,null,null,null,null,null,null,null,null,null,null,null,null,null,null,null,null,null,null,null,null,null,null,null,null,null,null,null,null,null,null,null,null,null,null,null,null,null,null,null,null,null,null,null,null,null,null,null,"Х"]
[null,null,null,null,null,null,null,null,null,null,null,null,null,null,null,null,null,null,null,null,null,null,null,null,null,null,null,null,null,null,null,null,null,null,null,null,null,null,null,null,null,null,null,null,null,null,null,null,null,null,null,null,null,null,null,null,null,null,null,null,null,null,null,null,null,null,null,null,null,null,null,null,"социального характера и стипендии"]
[]
[null,null,null,null,null,null,null,null,null,null,null,null,null,null,null,null,null,null,null,null,null,null,null,null,null,null,null,null,null,null,null,null,null,null,null,null,null,null,null,null,null,null,null,null,null,null,null,null,null,null,null,null,null,null,null,null,null,null,null,null,null,null,null,null,null,null,null,null,null,null,null,null,null,null,"Кассир",null,null,null,null,null,null,null,null,null,null,null,null,null,null,null,null,null,null,null,null,null,null,null,null,null,null,null,"Сорокина Е.В"]
[null,null,null,null,null,null,null,null,null,null,null,null,null,null,null,null,null,null,null,null,null,null,null,null,null,null,null,null,null,null,null,null,null,null,null,null,null,null,null,null,null,null,null,null,null,null,null,null,null,null,null,null,null,null,null,null,null,null,null,null,null,null,null,null,null,null,null,null,null,null,null,null,null,null,null,null,null,null,null,null,null,null,null,"(подпись)",null,null,null,null,null,null,null,null,null,null,null,null,null,null,null,null,null,null,"(расшифровка подписи)"]
[null,null,null,null,null,null,null,null,null,null,null,null,null,null,null,null,null,null,null,null,null,null,null,null,null,null,null,null,null,null,null,null,null,null,null,null,null,null,null,null,null,null,null,null,null,null,null,null,null,null,null,null,null,null,null,null,null,null,null,null,null,null,null,null,null,null,null,null,null,null,null,null,"Записи    в  кассовой   книге  проверил    и  документы    в "]
[null,null,null,null,null,null,null,null,null,null,null,null,null,null,null,null,null,null,null,null,null,null,null,null,null,null,null,null,null,null,null,null,null,null,null,null,null,null,null,null,null,null,null,null,null,null,null,null,null,null,null,null,null,null,null,null,null,null,null,null,null,null,null,null,null,null,null,null,null,null,null,null,"количестве",null,null,null,null,null,null,null,null,null,null,null,null,null,null,null,null,null,null,null,null,null,null,null,null,null,null,null,null,null,null,null,null,null,null,null,null,null,null,null,null,null,null,null,null,null,null,null,"приходных и"]
[null,null,null,null,null,null,null,null,null,null,null,null,null,null,null,null,null,null,null,null,null,null,null,null,null,null,null,null,null,null,null,null,null,null,null,null,null,null,null,null,null,null,null,null,null,null,null,null,null,null,null,null,null,null,null,null,null,null,null,null,null,null,null,null,null,null,null,null,null,null,null,null,null,null,null,null,null,null,null,null,null,null,null,null,"(прописью)"]
[null,null,null,null,null,null,null,null,null,null,null,null,null,null,null,null,null,null,null,null,null,null,null,null,null,null,null,null,null,null,null,null,null,null,null,null,null,null,null,null,null,null,null,null,null,null,null,null,null,null,null,null,null,null,null,null,null,null,null,null,null,null,null,null,null,null,null,null,null,null,null,null,null,null,null,null,null,null,null,null,null,null,null,null,null,null,null,null,null,null,null,null,null,null,null,null,null,null,null,null,null,null,null,null,null,null,null,null,null,null,null,null,null,null,null,null,null,null,null,null,"расходных"]
[null,null,null,null,null,null,null,null,null,null,null,null,null,null,null,null,null,null,null,null,null,null,null,null,null,null,null,null,null,null,null,null,null,null,null,null,null,null,null,null,null,null,null,null,null,null,null,null,null,null,null,null,null,null,null,null,null,null,null,null,null,null,null,null,null,null,null,null,null,null,null,null,null,"(прописью)"]
[null,null,null,null,null,null,null,null,null,null,null,null,null,null,null,null,null,null,null,null,null,null,null,null,null,null,null,null,null,null,null,null,null,null,null,null,null,null,null,null,null,null,null,null,null,null,null,null,null,null,null,null,null,null,null,null,null,null,null,null,null,null,null,null,null,null,null,null,null,null,null,null,"получил."]
[null,null,null,null,null,null,null,null,null,null,null,null,null,null,null,null,null,null,null,null,null,null,null,null,null,null,null,null,null,null,null,null,null,null,null,null,null,null,null,null,null,null,null,"Перенос",{"$f":"SUM(AS8:BD29)","v":0},null,null,null,null,null,null,null,null,null,null,null,{"$f":"SUM(BE8:BN29)","v":0},null,null,null,null,null,null,null,null,null,null,null,null,null,null,null,"Бухгалтер",null,null,null,null,null,null,null,null,null,null,null,null,null,null,null,null,null,null,null,null,null,null,null,null,null,null,null,null,null,null,"Сорокина Е.В"]
[null,null,null,null,null,null,null,null,null,null,null,null,null,null,null,null,null,null,null,null,null,null,null,null,null,null,null,null,null,null,null,null,null,null,null,null,null,null,null,null,null,null,null,null,null,null,null,null,null,null,null,null,null,null,null,null,null,null,null,null,null,null,null,null,null,null,null,null,null,null,null,null,null,null,null,null,null,null,null,null,null,null,null,"(подпись)",null,null,null,null,null,null,null,null,null,null,null,null,null,null,null,null,null,null,null,"(расшифровка подписи)"]
[]
[null,null,null,null,"Касса за ",null,null,null,null,null,null,null,null,"\"",null,null,null,"\"",null,null,null,null,null,null,null,null,null,null,null,null,null,null,null,null,null,null,"2014",null,null,null,null,null,"г.",null,null,null,null,null,null,"Лист",null,null,null,null,null,{"$f":"BD2+1","v":8}]
[]
[null,null,null,"Номер докумен- та",null,null,null,null,null,null,null,null,"От кого получено\nили кому выдано",null,null,null,null,null,null,null,null,null,null,null,null,null,null,null,null,null,null,null,"Номер кор- респонди- рующего счета, субсчета",null,null,null,null,null,null,null,null,null,null,null,"Приход,\nруб. коп.",null,null,null,null,null,null,null,null,null,null,null,"Расход, руб. коп.",null,null,null,null,null,null,null,null,null,null,null,null,null,null,null,"Номер доку- мента",null,null,null,null,null,null,null,"От кого получено\nили кому выдано",null,null,null,null,null,null,null,null,null,null,null,null,null,null,null,null,null,null,null,"Номер кор- респонди- рующего счета, субсчета",null,null,null,null,null,null,null,null,null,null,"Приход,\nруб. коп.",null,null,null,null,null,null,null,null,null,null,null,"Расход,\nруб. коп."]
[null,null,null,1,null,null,null,null,null,null,null,null,2,null,null,null,null,null,null,null,null,null,null,null,null,null,null,null,null,null,null,null,3,null,null,null,null,null,null,null,null,null,null,null,4,null,null,null,null,null,null,null,null,null,null,null,5,null,null,null,null,null,null,null,null,null,null,null,null,null,null,null,1,null,null,null,null,null,null,null,2,null,null,null,null,null,null,null,null,null,null,null,null,null,null,null,null,null,null,null,3,null,null,null,null,null,null,null,null,null,null,4,null,null,null,null,null,null,null,null,null,null,null,5]
[]
[null,null,null,null,null,null,null,null,null,null,null,null,null,null,null,null,null,null,null,null,null,null,"Остаток на начало дня",null,null,null,null,null,null,null,null,null,null,null,null,null,null,null,null,null,null,null,null,null,{"$f":"INDIRECT(\"'стр2 (\"&SUBSTITUTE(MID(CELL(\"имяфайла\",EE33),SEARCH(\"(\",CELL(\"имяфайла\",EE33),1)+1,5),\")\",\"\")-1&\")'!DH48\")","v":10400},null,null,null,null,null,null,null,null,null,null,null,"Х",null,null,null,null,null,null,null,null,null,"Л       и         н        и        я                   о        т        р        е        з       а"]
[]
[]
[]
[]
[]
[]
[]
[null,null,null,null,null,null,null,null,null,null,null,null,null,null,null,null,null,null,null,null,null,null,null,null,null,null,null,null,null,null,null,null,null,null,null,null,null,null,null,null,null,null,null,null,null,null,null,null,null,null,null,null,null,null,null,null,null,null,null,null,null,null,null,null,null,null,null,null,null,null,null,null,null,null,null,null,null,null,null,null,null,null,null,null,null,null,null,null,null,null,null,null,null,null,null,null,null,null,null,null,null,null,null,null,null,null,null,null,null,null,null,{"$f":"AS61+SUM(DH37:DS45)","v":0},null,null,null,null,null,null,null,null,null,null,null,{"$f":"BE61+SUM(DT37:EE45)","v":0}]
[null,null,null,null,null,null,null,null,null,null,null,null,null,null,null,null,null,null,null,null,null,null,null,null,null,null,null,null,null,null,null,null,null,null,null,null,null,null,null,null,null,null,null,null,null,null,null,null,null,null,null,null,null,null,null,null,null,null,null,null,null,null,null,null,null,null,null,null,null,null,null,null,null,null,null,null,null,null,null,null,null,null,null,null,null,null,null,null,null,null,null,null,null,null,null,null,null,null,null,null,null,null,null,null,null,null,null,null,null,null,"Итого за день"]
[null,null,null,null,null,null,null,null,null,null,null,null,null,null,null,null,null,null,null,null,null,null,null,null,null,null,null,null,null,null,null,null,null,null,null,null,null,null,null,null,null,null,null,null,null,null,null,null,null,null,null,null,null,null,null,null,null,null,null,null,null,null,null,null,null,null,null,null,null,null,null,null,null,null,null,null,null,null,null,null,null,null,null,null,null,null,null,null,null,null,null,null,null,null,null,null,null,null,null,null,null,null,null,null,null,null,null,null,null,null,null,{"$f":"AS38+DH46-DT46","v":10400},null,null,null,null,null,null,null,null,null,null,null,"Х"]
[null,null,null,null,null,null,null,null,null,null,null,null,null,null,null,null,null,null,null,null,null,null,null,null,null,null,null,null,null,null,null,null,null,null,null,null,null,null,null,null,null,null,null,null,null,null,null,null,null,null,null,null,null,null,null,null,null,null,null,null,null,null,null,null,null,null,null,null,null,null,null,null,null,null,null,null,null,null,null,null,null,null,null,null,null,null,null,null,null,null,null,null,null,null,null,null,null,null,null,null,null,null,null,null,null,null,null,null,null,null,"Остаток на конец дня"]
[null,null,null,null,null,null,null,null,null,null,null,null,null,null,null,null,null,null,null,null,null,null,null,null,null,null,null,null,null,null,null,null,null,null,null,null,null,null,null,null,null,null,null,null,null,null,null,null,null,null,null,null,null,null,null,null,null,null,null,null,null,null,null,null,null,null,null,null,null,null,null,null,"в том числе на заработную плату, выплаты",null,null,null,null,null,null,null,null,null,null,null,null,null,null,null,null,null,null,null,null,null,null,null,null,null,null,null,null,null,null,null,null,null,null,null,null,null,null,null,null,null,null,null,null,null,null,null,null,null,null,"Х"]
[null,null,null,null,null,null,null,null,null,null,null,null,null,null,null,null,null,null,null,null,null,null,null,null,null,null,null,null,null,null,null,null,null,null,null,null,null,null,null,null,null,null,null,null,null,null,null,null,null,null,null,null,null,null,null,null,null,null,null,null,null,null,null,null,null,null,null,null,null,null,null,null,"социального характера и стипендии"]
[]
[null,null,null,null,null,null,null,null,null,null,null,null,null,null,null,null,null,null,null,null,null,null,null,null,null,null,null,null,null,null,null,null,null,null,null,null,null,null,null,null,null,null,null,null,null,null,null,null,null,null,null,null,null,null,null,null,null,null,null,null,null,null,null,null,null,null,null,null,null,null,null,null,null,null,"Кассир",null,null,null,null,null,null,null,null,null,null,null,null,null,null,null,null,null,null,null,null,null,null,null,null,null,null,null,"Сорокина Е.В"]
[null,null,null,null,null,null,null,null,null,null,null,null,null,null,null,null,null,null,null,null,null,null,null,null,null,null,null,null,null,null,null,null,null,null,null,null,null,null,null,null,null,null,null,null,null,null,null,null,null,null,null,null,null,null,null,null,null,null,null,null,null,null,null,null,null,null,null,null,null,null,null,null,null,null,null,null,null,null,null,null,null,null,null,"(подпись)",null,null,null,null,null,null,null,null,null,null,null,null,null,null,null,null,null,null,"(расшифровка подписи)"]
[null,null,null,null,null,null,null,null,null,null,null,null,null,null,null,null,null,null,null,null,null,null,null,null,null,null,null,null,null,null,null,null,null,null,null,null,null,null,null,null,null,null,null,null,null,null,null,null,null,null,null,null,null,null,null,null,null,null,null,null,null,null,null,null,null,null,null,null,null,null,null,null,"Записи    в  кассовой   книге  проверил    и  документы    в "]
[null,null,null,null,null,null,null,null,null,null,null,null,null,null,null,null,null,null,null,null,null,null,null,null,null,null,null,null,null,null,null,null,null,null,null,null,null,null,null,null,null,null,null,null,null,null,null,null,null,null,null,null,null,null,null,null,null,null,null,null,null,null,null,null,null,null,null,null,null,null,null,null,"количестве",null,null,null,null,null,null,null,null,null,null,null,null,null,null,null,null,null,null,null,null,null,null,null,null,null,null,null,null,null,null,null,null,null,null,null,null,null,null,null,null,null,null,null,null,null,null,null,"приходных и"]
[null,null,null,null,null,null,null,null,null,null,null,null,null,null,null,null,null,null,null,null,null,null,null,null,null,null,null,null,null,null,null,null,null,null,null,null,null,null,null,null,null,null,null,null,null,null,null,null,null,null,null,null,null,null,null,null,null,null,null,null,null,null,null,null,null,null,null,null,null,null,null,null,null,null,null,null,null,null,null,null,null,null,null,null,"(прописью)"]
[null,null,null,null,null,null,null,null,null,null,null,null,null,null,null,null,null,null,null,null,null,null,null,null,null,null,null,null,null,null,null,null,null,null,null,null,null,null,null,null,null,null,null,null,null,null,null,null,null,null,null,null,null,null,null,null,null,null,null,null,null,null,null,null,null,null,null,null,null,null,null,null,null,null,null,null,null,null,null,null,null,null,null,null,null,null,null,null,null,null,null,null,null,null,null,null,null,null,null,null,null,null,null,null,null,null,null,null,null,null,null,null,null,null,null,null,null,null,null,null,"расходных"]
[null,null,null,null,null,null,null,null,null,null,null,null,null,null,null,null,null,null,null,null,null,null,null,null,null,null,null,null,null,null,null,null,null,null,null,null,null,null,null,null,null,null,null,null,null,null,null,null,null,null,null,null,null,null,null,null,null,null,null,null,null,null,null,null,null,null,null,null,null,null,null,null,null,"(прописью)"]
[null,null,null,null,null,null,null,null,null,null,null,null,null,null,null,null,null,null,null,null,null,null,null,null,null,null,null,null,null,null,null,null,null,null,null,null,null,null,null,null,null,null,null,null,null,null,null,null,null,null,null,null,null,null,null,null,null,null,null,null,null,null,null,null,null,null,null,null,null,null,null,null,"получил."]
[null,null,null,null,null,null,null,null,null,null,null,null,null,null,null,null,null,null,null,null,null,null,null,null,null,null,null,null,null,null,null,null,null,null,null,null,null,null,null,null,null,null,null,"Перенос",{"$f":"SUM(AS39:BD60)","v":0},null,null,null,null,null,null,null,null,null,null,null,{"$f":"SUM(BE39:BN60)","v":0},null,null,null,null,null,null,null,null,null,null,null,null,null,null,null,"Бухгалтер",null,null,null,null,null,null,null,null,null,null,null,null,null,null,null,null,null,null,null,null,null,null,null,null,null,null,null,null,null,null,"Сорокина Е.В"]
[null,null,null,null,null,null,null,null,null,null,null,null,null,null,null,null,null,null,null,null,null,null,null,null,null,null,null,null,null,null,null,null,null,null,null,null,null,null,null,null,null,null,null,null,null,null,null,null,null,null,null,null,null,null,null,null,null,null,null,null,null,null,null,null,null,null,null,null,null,null,null,null,null,null,null,null,null,null,null,null,null,null,null,"(подпись)",null,null,null,null,null,null,null,null,null,null,null,null,null,null,null,null,null,null,null,"(расшифровка подписи)"]